[Event "Sardinia World Festival-A 2024"]
[Site "Orosei"]
[Date "2024.04.27"]
[Round "1.16"]
[White "Maldonado Gonzales, Stefano"]
[Black "Sivuk, Vitaly"]
[Result "0-1"]
[ECO "B11"]
[WhiteElo "2218"]
[BlackElo "2551"]
[Annotator "TA"]
[PlyCount "134"]
[EventDate "2024.04.26"]
[EventType "swiss"]
[EventCountry "ITA"]
[SourceTitle "playchess.com"]
[Source "ChessBase"]
[SourceQuality "1"]
[TimeControl "40/5400+30:1800+30"]

{[%evp 46,134,-15,-22,0,0,0,-60,-53,-51,-48,-64,-55,-68,-47,-47,-37,-49,-16,-24,-10,-18,0,0,0,0,0,-2,0,-17,0,0,0,0,0,0,0,0,0,0,0,0,0,0,0,0,0,0,0,0,0,0,0,0,0,0,0,0,0,0,0,0,0,0,0,0,0,0,0,-26,0,-27,-31,-45,-41,-40,-38,-811,-758,-757,-20,-1343,29986,-1679,-1239,-1775,-1687,-29992,-1708,-29990,-1064]} 1. e4 {[%emt 0:00:01]} c6 {[%emt 0:05:44]} 2. Nf3 {[%emt 0:00:04]} d5 {[%emt 0:00:09]} 3. Nc3 {[%emt 0:00:04]} Bg4 {[%emt 0:00:12]} 4. h3 {[%emt 0:00:04]} Bxf3 {[%emt 0:00:09]} 5. Qxf3 {[%emt 0:00:04]} e6 {[%emt 0:00:13]} 6. Be2 {[%emt 0:00:02]} Bc5 {[%emt 0:00:17] B11: Caro-Kann: Two Knights Variation.} 7. Qg3 {[%emt 0:00:05]} Bd4 {[%emt 0:04:17]} 8. exd5 {[%emt 0:00:23]} exd5 {[%emt 0:00:38]} 9. O-O {[%emt 0:00:08]} Ne7 {[%emt 0:00:59]} 10. Bd1 {[%emt 0:09:42]} Nd7 {[%emt 0:01:49]} 11. Ne2 {[%emt 0:00:03]} Be5 {[%emt 0:00:34]} 12. Qf3 {[%emt 0:00:04]} Nf6 $146 {[%emt 0:08:14]} ({Predecessor:} 12... O-O 13. d4 Bc7 14. c3 Nf6 15. Bc2 Ng6 16. Bg5 Qd6 17. g3 Ne4 18. Bxe4 dxe4 19. Qxe4 {1-0 Tomczak,J (2584)-Socko,B (2636) POL-ch Lotto 79th 2022 (2.5)}) 13. d4 {[%emt 0:04:09]} Bd6 {[%emt 0:01:14]} 14. c3 {[%emt 0:10:22]} Ne4 {[%emt 0:01:45]} 15. Bc2 {[%emt 0:02:52]} f5 {[%emt 0:01:22]} 16. Qh5+ {[%emt 0:06:08]} g6 {[%emt 0:00:35]} 17. Qh6 {[%emt 0:01:16]} Kf7 {[%emt 0:04:06]} 18. f3 {[%emt 0:06:36]} Ng8 {[%emt 0:03:46]} 19. Qe3 {[%emt 0:00:07]} Ng3 {[%emt 0:00:10]} 20. Nxg3 {[%emt 0:06:52]} Bxg3 {[%emt 0:00:07]} 21. Bd2 {[%emt 0:00:14]} Qh4 {[%emt 0:05:06]} 22. Be1 {[%emt 0:04:49]} Re8 {[%emt 0:10:24]} 23. Bxg3 {[%emt 0:00:05]} Qxg3 {[%emt 0:00:06]} 24. Qf2 {[%emt 0:00:08]} Qd6 {[%emt 0:01:01]} (24... Qxf2+ 25. Kxf2 f4 26. Rfe1 $17) 25. Rae1 {[%emt 0:02:43]} Nf6 {[%emt 0:00:13]} 26. f4 {[%emt 0:03:52]} (26. g4 $11) 26... Ne4 {[%emt 0:01:17]} 27. Bxe4 {[%emt 0:00:14]} dxe4 {[%emt 0:00:57]} 28. Qc2 {[%emt 0:09:28]} Qd5 {[%emt 0:01:42]} 29. Qb3 {[%emt 0:00:44]} b6 {[%emt 0:02:48]} (29... Re7 {simplifies} 30. Qxd5+ cxd5 31. a4 Kf6) 30. Kf2 {[%emt 0:02:22]} Re7 {[%emt 0:04:15]} 31. Ke3 {[%emt 0:32:15]} Rd8 {[%emt 0:00:07]} 32. Qxd5+ {[%emt 0:00:00]} cxd5 {[%emt 0:00:48]} 33. g4 {[%emt 0:00:00]} Rd6 {[%emt 0:02:20]} 34. Rg1 {[%emt 0:00:00]} Rf6 {[%emt 0:00:33]} 35. Rg2 {[%emt 0:00:00]} b5 {[%emt 0:00:35]} 36. a3 {[%emt 0:00:00]} a5 {[%emt 0:00:18]} 37. a4 {[%emt 0:00:00]} Rb7 {[%emt 0:01:46]} 38. axb5 {[%emt 0:00:00]} Rxb5 {[%emt 0:00:05]} 39. Ra1 {[%emt 0:00:00]} h6 {[%emt 0:05:42]} 40. gxf5 {[%emt 0:00:00]} Rxf5 {[%emt 0:03:39]} 41. h4 {[%emt 0:31:52]} Rf6 {[%emt 0:31:15]} 42. Rf1 {[%emt 0:00:00]} Rb3 {[%emt 0:00:00]} 43. Ra1 {[%emt 0:00:00]} Rb5 {[%emt 0:00:00]} 44. Rf1 {[%emt 0:00:00]} Ke7 {[%emt 0:00:00]} 45. Rfg1 {[%emt 0:00:00]} Ke6 {[%emt 0:00:00]} 46. Rf1 {[%emt 0:00:00]} Kf7 {[%emt 0:00:00]} 47. Rh1 {[%emt 0:00:00]} Rfb6 {[%emt 0:00:00]} 48. Ra1 {[%emt 0:00:00]} Kf6 {[%emt 0:00:00]} 49. Ra2 {[%emt 0:00:00]} Kf5 {[%emt 0:00:00]} 50. Ra1 {[%emt 0:00:00]} Ra6 {[%emt 0:00:00]} 51. h5 $1 {[%emt 0:00:14]} gxh5 {[%emt 0:10:21]} 52. Rh1 {[%emt 0:00:05]} Rg6 {[%emt 0:00:07]} 53. Rxh5+ {[%emt 0:00:03]} Kf6 {[%emt 0:00:05]} 54. Rxg6+ {[%emt 0:00:04]} Kxg6 {[%emt 0:00:04]} 55. Re5 {[%emt 0:00:25]} a4 {[%emt 0:00:25]} 56. Re6+ {[%emt 0:01:18]} Kg7 {[%emt 0:03:18]} 57. Re5 {[%emt 0:00:35]} Kf6 {[%emt 0:01:15]} 58. Rh5 {[%emt 0:00:11]} Kg6 {[%emt 0:00:10]} 59. Re5 {[%emt 0:00:08]} h5 {[%emt 0:00:35]} 60. f5+ $1 {[%emt 0:07:49]} Kf7 {[%emt 0:02:17]} 61. Kf4 $2 {[%emt 0:01:09][%mdl 8192]} (61. c4 $15 Rb3+ 62. Kf4 dxc4 (62... Rxb2 63. Rxd5 e3 64. Kxe3 $11) 63. d5) 61... h4 $1 $19 {[%emt 0:00:30]} (61... Rxb2 62. Rxd5 a3 63. Rd7+ Kf6 64. Rd6+ Kf7 65. Ra6 $11) 62. f6 {[%emt 0:00:40]} Kxf6 $2 {[%emt 0:01:10]} (62... Rxb2 $19 63. Rh5 a3 (63... Kxf6 $2 64. Rxh4 Rf2+ 65. Ke3 $19) 64. Rxh4 a2 (64... Kxf6 $2 65. Rh6+ Ke7 66. Rh7+ Kd6 67. Rh6+ Kc7 68. Ke3 $19) 65. Rh7+ Kxf6) 63. Rh5 $2 {[%emt 0:00:15][%mdl 8192] [#]} (63. c4 $11 Rb4 (63... Rxb2 64. cxd5 Rb4 65. Rxe4 $11) 64. Rf5+ Kg6 65. Rg5+ Kh6 66. cxd5) 63... Rb4 $4 {[%emt 0:20:26][%mdl 8192]} (63... Rxb2 $3 $19 {[%mdl 512]} 64. Rxh4 a3 (64... Rf2+ $2 65. Ke3 $19) 65. Rh6+ Ke7) 64. b3 $4 {[%mdl 8192]} (64. cxb4 {and all is fine.} Ke7 65. Rxd5 (65. Rxh4 Kd7 66. b5 Kc7 67. Rh5 Kb8 68. Rh7 Kc8 69. b6 e3 70. Kxe3 Kb8) 65... Kf6 66. Rh5 (66. Kxe4 Kg6 67. b5 Kh6 68. b6 h3 69. Rc5 h2 70. Rc1 Kg7) 66... Kf7 67. b5 (67. Kxe4 Kg6 68. Rxh4 Kg5 69. Rf4 Kg6 70. b5 Kg7 71. b6 Kh6) 67... e3 68. b6 (68. Kxe3 Kg6 69. Rxh4 Kf7 70. b6 a3 71. b7 axb2 72. b8=Q b1=Q 73. Qxb1 Ke6) 68... e2 69. Re5 (69. Rxh4 $2 e1=Q $19)) 64... Rxb3 {[%emt 0:00:00]} 65. Rh6+ {[%emt 0:00:52]} Kg7 {[%emt 0:00:00]} 66. Ke3 {[%emt 0:01:04]} Rb2 {[%emt 0:00:00]} (66... Kxh6 $142 67. Kf4 Rxc3 68. Ke5 e3 69. Kxd5 Kg6 (69... e2 70. Ke5 Kg6 71. Ke6 e1=Q+ 72. Kd7 Kf6 73. Kd8 Qe7#) 70. Ke6 e2 71. Ke7 e1=Q+ (71... e1=R+ 72. Kd7 h3 73. Kd8 h2 74. d5 h1=Q 75. d6 Qh8+ 76. Kd7 Qe8#) (71... Re3+ 72. Kd6 a3 73. Kc7 e1=Q 74. d5 Rc3+ 75. Kb8 a2 76. Ka8 a1=Q+ 77. Kb8 Qeb1#) 72. Kd7 Kf7 73. Kd8 Qe8#) 67. Kf4 {[%emt 0:00:12]} Rd2 {[%emt 0:00:00]} (67... Kxh6 $142 68. c4 h3 (68... dxc4 {leads to mate.} 69. d5 c3 70. Kxe4 c2 71. d6 c1=Q 72. Kd5 Kg5 73. Ke6 Qc6 74. Ke7 Rb7+ 75. d7 Rxd7+ 76. Kf8 Qc8#) 69. cxd5 h2 70. Kf5 h1=Q (70... h1=B 71. d6 e3 72. d7 Rb8 73. Ke6 e2 74. Kd6 e1=Q 75. d8=Q Rxd8+ 76. Kc5 Rd5+ 77. Kc6 Qe6+ 78. Kc7 Rd7+ 79. Kc8 Qe8#) 71. Kf6 Qh5 72. Ke6 Qg6+ (72... e3 73. Kd6 e2 74. Ke7 e1=Q+ 75. Kd6 Rc2 76. Kd7 Qxd5#) 73. Kd7 Rb7+ (73... e3 {gets mated.} 74. Kd8 Qd6+ 75. Ke8 Rb8+ 76. Kf7 Rf8#) 74. Kc8 Rf7 75. Kd8 Qg8#) 0-1

[Event "Sardinia World Festival-A 2024"]
[Site "Orosei"]
[Date "2024.04.27"]
[Round "1.17"]
[White "Samunenkov, Ihor"]
[Black "Lacan Rus, David"]
[Result "1-0"]
[ECO "E66"]
[WhiteElo "2548"]
[BlackElo "2214"]
[Annotator "TA"]
[PlyCount "69"]
[EventDate "2024.04.26"]
[EventType "swiss"]
[EventCountry "ITA"]
[SourceTitle "playchess.com"]
[Source "ChessBase"]
[SourceQuality "1"]
[TimeControl "40/5400+30:1800+30"]

{[%evp 25,69,43,46,20,12,-15,0,-62,-68,-108,34,49,72,64,118,126,136,116,114,130,118,134,138,143,198,213,197,205,194,190,202,204,252,216,261,239,368,356,397,259,454,456,459,466,594,579]} 1. d4 {[%emt 0:00:04]} Nf6 {[%emt 0:01:15]} 2. Nf3 {[%emt 0:00:20]} g6 {[%emt 0:00:30]} 3. c4 {[%emt 0:00:14]} Bg7 {[%emt 0:01:01]} 4. g3 {[%emt 0:00:13]} O-O {[%emt 0:02:02]} 5. Bg2 {[%emt 0:00:11]} d6 {[%emt 0:01:01]} 6. Nc3 {[%emt 0:02:17]} Nc6 {[%emt 0:02:54]} 7. O-O {[%emt 0:01:59]} Bf5 {[%emt 0:00:06]} 8. d5 {[%emt 0:11:54]} Na5 {[%emt 0:00:12]} 9. Nd2 {[%emt 0:01:24]} c5 {[%emt 0:02:49]} 10. e4 {[%emt 0:03:32]} Bd7 {[%emt 0:00:25]} 11. Qc2 {[%emt 0:06:19]} a6 {[%emt 0:01:55]} 12. b3 {[%emt 0:00:22]} b5 {[%emt 0:01:45]} 13. Bb2 {[%emt 0:00:17]} Rb8 {[%emt 0:02:47]} 14. Rfe1 {[%emt 0:20:04]} bxc4 {[%emt 0:05:21]} 15. bxc4 {[%emt 0:02:03]} Ng4 {[%emt 0:04:28]} 16. h3 {[%emt 0:18:14]} ({Better is} 16. Nd1 $11) 16... Ne5 $15 {[%emt 0:01:57]} 17. Bf1 {[%emt 0:08:54]} g5 {[%emt 0:05:05]} (17... Rb4 $17 {[%cal Re5c4]} 18. a3 Naxc4 19. Nxc4 (19. axb4 Nxd2 20. bxc5 Ndf3+ 21. Kh1 Nxe1 $15) 19... Rxc4 20. Bxc4 Nxc4) 18. Rab1 $14 {[%emt 0:02:05]} Qc8 {[%emt 0:11:01]} 19. Nd1 {[%emt 0:04:09]} f5 {[%emt 0:09:16] [#] White now steadily converts the win.} (19... Rxb2 20. Rxb2 Bxh3 21. Ne3 $16) (19... Rb4 $14) 20. Bxe5 $1 $16 {[%emt 0:04:12]} Bxe5 {[%emt 0:01:13]} 21. Rxb8 {[%emt 0:01:10]} Qxb8 {[%emt 0:00:01]} 22. Nf3 {[%emt 0:00:18] Nxe5 is the strong threat.} f4 {[%emt 0:12:18]} 23. Nxe5 {[%emt 0:06:25]} (23. Nxg5 fxg3 24. Bd3 Qe8 $19 (24... h6 $2 25. Ne6 $19)) 23... dxe5 {[%emt 0:00:01]} 24. Qc3 {[%emt 0:00:30]} Nb7 {[%emt 0:04:46]} (24... Qb4 $16) 25. Nb2 $18 {[%emt 0:01:26][%cal Bd1b2,Bb2d3,Bd3f4][%mdl 32]} g4 {[%emt 0:03:39]} 26. Nd3 {[%emt 0:01:47]} fxg3 {[%emt 0:02:02]} 27. fxg3 {[%emt 0:00:10]} (27. Qxe5 $2 Qxe5 (27... gxh3 $2 28. fxg3 h2+ 29. Kxh2 $18) (27... gxf2+ $2 28. Nxf2 Qxe5 29. Re2 $19) 28. Re2 Qd4 $19 (28... gxf2+ 29. Rxf2 Qg3+ 30. Rg2 Qe3+ 31. Kh2 Rxf1 32. Rg3 Qe2+ 33. Rg2 Qxd3 34. hxg4 Qxe4 35. Rg1 Rf2+ 36. Kh3 Qe3+ 37. Rg3 Qh6#)) 27... gxh3 {[%emt 0:06:54]} 28. Qxe5 {[%emt 0:00:46]} Qe8 {[%emt 0:02:03]} 29. Qg5+ {[%emt 0:02:23]} Kh8 {[%emt 0:00:19]} 30. e5 {[%emt 0:00:38] [#] Dodges Nd6. Strongly threatening e6.} Bf5 {[%emt 0:02:24]} (30... Rg8 {was worth a try.} 31. Qe3 h2+ 32. Kh1 (32. Kxh2 Qh5+ 33. Kg2 Bh3+ 34. Kg1 Bxf1 $18) 32... Qg6) 31. Nf4 {[%emt 0:00:39]} Nd8 {[%emt 0:01:43]} 32. Kh2 {[%emt 0:00:33][%cal Oe5e6] Black must now prevent e6!} (32. Bxh3 Bxh3 33. Nxh3 Rg8 $18) 32... e6 $2 {[%emt 0:02:06]} (32... Qf7 33. Re2 (33. Nxh3 Bxh3 34. Kxh3 Rg8 $18) 33... Rg8) 33. Bxh3 {[%emt 0:00:43] White is clearly winning.} (33. Nxh3 Qf7 34. Nf4 Rg8 35. Qf6+ Qxf6 36. exf6 Rf8 37. dxe6 Nxe6 38. Nxe6 Rxf6 39. Nxc5 Rc6) 33... Bxh3 {[%emt 0:00:37]} 34. Kxh3 {[%emt 0:00:07]} ({But not} 34. Nxh3 Qf7 35. Nf4 Rg8) 34... Qd7 {[%emt 0:02:35]} 35. Qh6 {[%emt 0:00:53] Weighted Error Value: White=0.22 (precise) /Black=0.62.  Mistake:       	White=1     	Black=5      Inaccurate:     	White=3     	---        OK:         	White=9     	Black=3      Best:        	White=2     	Black=1      Strong:       	White=1     	---} 1-0

[Event "Sardinia World Festival-A 2024"]
[Site "Orosei"]
[Date "2024.04.27"]
[Round "1.18"]
[White "Harish, Neeraj"]
[Black "Bharath Subramaniyam H"]
[Result "0-1"]
[ECO "B42"]
[WhiteElo "2213"]
[BlackElo "2544"]
[Annotator "TA"]
[PlyCount "120"]
[EventDate "2024.04.26"]
[EventType "swiss"]
[EventCountry "ITA"]
[SourceTitle "playchess.com"]
[Source "ChessBase"]
[SourceQuality "1"]
[TimeControl "40/5400+30:1800+30"]

{[%evp 29,120,7,22,31,31,29,20,0,0,0,0,0,0,0,0,0,0,0,0,0,0,0,0,-30,-25,-32,-16,-32,-21,-73,-40,-130,-131,-136,-113,-230,0,-133,-129,-173,-176,-183,0,-193,-195,-193,-206,-188,-153,-202,-188,-206,-189,-184,-214,-218,-202,-265,-241,-312,-283,-340,-428,-416,-293,-439,-441,-456,-458,-435,-412,-458,-458,-443,-404,-403,-289,-310,-283,-1053,-1053,-1709,-1652,-1641,-1098,-29975,-29975,-29975,-29976,-29983,-29984,-29984,-29985]} 1. e4 {[%emt 0:00:07]} c5 {[%emt 0:00:41]} 2. Nf3 {[%emt 0:00:21]} e6 {[%emt 0:00:15]} 3. d4 {[%emt 0:00:12]} cxd4 {[%emt 0:00:06]} 4. Nxd4 {[%emt 0:00:06]} a6 {[%emt 0:00:27]} 5. Bd3 {[%emt 0:00:46]} Nf6 {[%emt 0:00:12]} 6. O-O {[%emt 0:00:17]} Qc7 {[%emt 0:00:09]} 7. Qe2 {[%emt 0:00:11]} d6 {[%emt 0:00:08]} 8. c4 {[%emt 0:00:48]} Be7 {[%emt 0:00:21]} 9. Nc3 {[%emt 0:00:17]} Nbd7 {[%emt 0:00:10]} 10. f4 {[%emt 0:01:54]} b6 {[%emt 0:01:03]} 11. Nf3 {[%emt 0:01:50] B42: Sicilian: Kan Variation: 5 Bd3.} Bb7 {[%emt 0:07:56]} 12. e5 {[%emt 0:14:59]} Ng4 {[%emt 0:21:50]} 13. Ng5 $146 {[%emt 0:22:40]} ({Predecessor:} 13. h3 Nh6 14. exd6 Qxd6 15. Be3 O-O 16. Rad1 Qc7 17. Kh1 Nc5 18. Bb1 Rad8 19. Nd4 {½-½ Wahls,M (2440)-Dizdarevic,E (2485) Bad Woerishofen op 4th 1988 (6)}) 13... Bxg5 {[%emt 0:13:26]} 14. Qxg4 {[%emt 0:00:14]} Bh6 {[%emt 0:00:31]} 15. Be4 {[%emt 0:11:30]} dxe5 {[%emt 0:29:05]} 16. Bxb7 {[%emt 0:03:25]} Qxb7 {[%emt 0:00:09]} 17. f5 {[%emt 0:04:02]} Nf6 {[%emt 0:06:19]} 18. Qe2 {[%emt 0:02:05]} Bxc1 {[%emt 0:02:37]} 19. Raxc1 {[%emt 0:00:07]} Qc7 {[%emt 0:05:15]} 20. fxe6 {[%emt 0:03:05]} fxe6 {[%emt 0:00:07]} 21. Ne4 {[%emt 0:06:54]} O-O {[%emt 0:03:06]} 22. Nxf6+ {[%emt 0:00:09]} Rxf6 {[%emt 0:01:59]} 23. Rxf6 {[%emt 0:00:17]} gxf6 {[%emt 0:00:05]} 24. Qg4+ {[%emt 0:00:06]} Kf7 {[%emt 0:04:28]} 25. c5 {[%emt 0:07:22]} bxc5 {[%emt 0:01:02]} 26. b4 {[%emt 0:00:58]} Rg8 {[%emt 0:00:48]} 27. Qh5+ {[%emt 0:00:41]} Kg7 {[%emt 0:00:14]} 28. bxc5 {[%emt 0:02:32]} Qc6 {[%emt 0:01:16]} 29. Qh4 {[%emt 0:02:10]} (29. Rc3 $11 {keeps the balance.}) 29... Qd5 {[%emt 0:00:33]} 30. Rc4 {[%emt 0:06:44]} (30. c6 Qd4+ 31. Qxd4 exd4) (30. Kh1 $15) 30... Qd1+ $17 {[%emt 0:00:34]} 31. Kf2 {[%emt 0:00:06]} Qd2+ {[%emt 0:00:14]} 32. Kf1 {[%emt 0:00:25]} (32. Kg1 $17 {was the only chance.} Qd1+ (32... Qxa2 33. Rg4+ Kf8 34. Qxf6+ Ke8 35. Rxg8+ Kd7 36. Qd8+ Kc6 37. Qd6+ Kb5 38. Rb8+ Kc4 39. Qxe6+ Kd4 40. Rd8+ Kxc5 41. Qxa2) 33. Kf2) 32... Qd1+ {[%emt 0:00:45]} (32... Qxa2 33. Rg4+ Kf8 34. Qxf6+ Ke8 35. Rxg8+ Kd7 36. Qd8+ (36. Qxe5 Qc4+ 37. Kf2 Qa2+ 38. Kg3 Qd5 $18) 36... Kc6 37. Qd6+ Kb5 38. Rb8+ (38. Qxe5 Qb1+ 39. Kf2 Qf5+ 40. Qxf5 exf5 $18) 38... Kc4 39. Qxe6+ Kd4 40. Qxa2) (32... Qd3+ $19 33. Kg1 Qb1+ 34. Kf2 Qxa2+ 35. Kf1 Qb1+ 36. Qe1 Qxe1+ 37. Kxe1 f5) 33. Kf2 $1 $17 {[%emt 0:00:19]} h5 $1 {[%emt 0:00:21]} 34. Rb4 {[%emt 0:02:50]} Qd2+ {[%emt 0:00:01]} 35. Kf1 {[%emt 0:00:30]} Qd1+ {[%emt 0:00:21]} (35... Qxa2 36. Qxh5 (36. Rb7+ Kg6 $11) 36... Qa1+ 37. Ke2 (37. Kf2 Qa2+ 38. Kf1 Qa1+ 39. Ke2 Qa2+ 40. Kf1 $11) 37... Qa2+ 38. Kf1 Qa1+ 39. Kf2 Qa2+ 40. Kg1 (40. Qe2 Qxe2+ 41. Kxe2 f5 $15) 40... Qa1+ 41. Kf2 Qa2+ 42. Kf1 $11 (42. Qe2 Qxe2+ 43. Kxe2 f5 $15)) 36. Kf2 $1 {[%emt 0:00:08]} Rd8 {[%emt 0:01:13]} 37. Rb7+ {[%emt 0:01:30]} Kg6 $1 {[%emt 0:00:10]} (37... Rd7 38. Qe4 $11) 38. Qg3+ {[%emt 0:02:14]} (38. Qe4+ $2 f5 39. Qe1 Qc2+ 40. Kf1 Rd1 $19 (40... Qxc5 41. Qg3+ Kh6 42. Qg7#)) 38... Kf5 {[%emt 0:00:16]} 39. Qh3+ {[%emt 0:03:51]} Qg4 {[%emt 0:00:07]} 40. Qxg4+ {[%emt 0:00:06]} hxg4 {[%emt 0:00:07]} 41. Rb2 {[%emt 0:31:05]} Rc8 {[%emt 0:11:30]} 42. Rc2 {[%emt 0:00:00]} Ke4 {[%emt 0:00:08]} 43. h4 {[%emt 0:00:00]} gxh3 {[%emt 0:04:01]} 44. gxh3 {[%emt 0:00:00]} Rc6 {[%emt 0:02:12]} (44... Kd5 45. h4 Rh8 (45... Rxc5 $2 46. Rxc5+ Kxc5 47. h5 $18) 46. Kg3) 45. h4 {[%emt 0:00:00]} Kf4 $1 {[%emt 0:05:10]} (45... Kd5 46. Ke3 e4 (46... Rxc5 $2 47. Rxc5+ Kxc5 48. h5 $18) 47. h5 $11) 46. Rc4+ {[%emt 0:00:00]} e4 {[%emt 0:00:02]} 47. h5 {[%emt 0:00:00] [#]} Kg5 $1 {[%emt 0:02:48]} 48. Rxe4 {[%emt 0:00:00]} Kxh5 {[%emt 0:00:18]} (48... Rxc5 49. Rxe6 Rc2+ 50. Kg3 $17) 49. Ke3 {[%emt 0:00:00]} e5 {[%emt 0:00:14]} ({Less strong is} 49... Rxc5 50. Rxe6 Kg5 51. Rxa6 $11) 50. Rc4 {[%emt 0:00:00]} f5 {[%emt 0:00:07]} 51. Rc1 {[%emt 0:00:00]} Kg5 {[%emt 0:01:04]} 52. Kd3 {[%emt 0:00:00]} Rc8 {[%emt 0:01:30]} 53. Kc4 {[%emt 0:00:00]} f4 {[%emt 0:01:18]} 54. Kd5 $2 {[%emt 0:00:00] [#]} (54. Kd3 Kf5 55. c6 e4+ 56. Kd2) 54... Kf5 $1 $19 {[%emt 0:00:08]} 55. c6 {[%emt 0:00:00]} f3 {[%emt 0:01:52]} 56. c7 {[%emt 0:00:00]} Kf4 {[%emt 0:02:21]} 57. a4 {[%emt 0:02:48]} f2 {[%emt 0:01:31]} 58. Rc6 {[%emt 0:03:28]} Ke3 {[%emt 0:00:44]} (58... f1=B 59. Rf6+ Kg5 60. Rxf1 Rxc7 61. Rf8 $11) (58... Rxc7 59. Rxc7 Kf3 60. Rh7 $11 (60. Kxe5 f1=Q $11)) 59. Rf6 {[%emt 0:00:31]} Rxc7 {[%emt 0:00:07]} 60. Kxe5 {[%emt 0:00:08]} Rc1 {[%emt 0:04:58]} 0-1

[Event "Sardinia World Festival-A 2024"]
[Site "Orosei"]
[Date "2024.04.27"]
[Round "1.19"]
[White "Erdogmus, Yagiz Kaan"]
[Black "Chitre Arush"]
[Result "1-0"]
[ECO "C60"]
[WhiteElo "2540"]
[BlackElo "2210"]
[Annotator "RC"]
[PlyCount "109"]
[EventDate "2024.04.26"]
[EventType "swiss"]
[EventCountry "ITA"]
[SourceTitle "playchess.com"]
[Source "ChessBase"]
[SourceQuality "1"]
[TimeControl "40/5400+30:1800+30"]

1. e4 {[%emt 0:00:03]} e5 {[%emt 0:00:10]} 2. Nf3 {[%emt 0:00:06]} Nc6 {[%emt 0:00:09]} 3. Bb5 {[%emt 0:00:07]} Nge7 {[%emt 0:00:24]} 4. Nc3 {[%emt 0:00:10]} g6 {[%emt 0:00:10]} 5. d4 {[%emt 0:00:28]} exd4 {[%emt 0:00:35]} 6. Nd5 {[%emt 0:00:22]} Bg7 {[%emt 0:00:07]} 7. Bg5 {[%emt 0:00:06]} h6 {[%emt 0:00:23]} 8. Bf6 {[%emt 0:00:06]} Bxf6 {[%emt 0:00:12]} 9. Nxf6+ {[%emt 0:00:06]} Kf8 {[%emt 0:00:08]} 10. O-O {[%emt 0:01:03]} Kg7 {[%emt 0:02:24]} 11. Nd5 {[%emt 0:00:26]} d6 {[%emt 0:02:22]} 12. Bxc6 {[%emt 0:01:09]} Nxc6 {[%emt 0:00:36]} 13. Nxd4 {[%emt 0:00:10]} Ne7 {[%emt 0:05:59]} 14. c4 {[%emt 0:10:03]} c6 {[%emt 0:17:23]} 15. Ne3 {[%emt 0:05:27]} Ng8 {[%emt 0:02:38]} 16. Qc2 {[%emt 0:09:28]} Nf6 {[%emt 0:01:27]} 17. Qc3 {[%emt 0:09:04]} Re8 {[%emt 0:10:17]} 18. f3 {[%emt 0:01:36]} Qe7 {[%emt 0:03:16]} 19. Rad1 {[%emt 0:03:52]} Kh7 {[%emt 0:15:18]} 20. Rfe1 {[%emt 0:10:50]} Bd7 {[%emt 0:12:47]} 21. Ne2 {[%emt 0:12:10]} Red8 {[%emt 0:06:12]} 22. Rd3 {[%emt 0:10:17]} Be6 {[%emt 0:06:15]} 23. Nf4 {[%emt 0:10:54]} Nd7 {[%emt 0:03:58]} 24. Nxe6 {[%emt 0:08:30]} fxe6 {[%emt 0:02:11]} 25. Rd2 {[%emt 0:06:27]} c5 {[%emt 0:03:37]} 26. f4 {[%emt 0:00:00]} Nf6 {[%emt 0:00:46]} 27. Qc2 {[%emt 0:00:00]} Kg7 {[%emt 0:01:57]} 28. Red1 {[%emt 0:00:08]} Rac8 {[%emt 0:01:13]} 29. g3 {[%emt 0:00:57]} b6 {[%emt 0:00:39]} 30. b3 {[%emt 0:00:25]} a6 {[%emt 0:00:37]} 31. Ng2 {[%emt 0:00:32]} e5 {[%emt 0:00:23]} 32. f5 {[%emt 0:00:26]} g5 {[%emt 0:00:56]} 33. Ne3 {[%emt 0:00:27]} Rc6 {[%emt 0:00:33]} 34. Qd3 {[%emt 0:00:34]} Rcc8 {[%emt 0:00:33]} 35. Qe2 {[%emt 0:00:23]} Rc6 {[%emt 0:00:33]} 36. Qf3 {[%emt 0:00:06]} Qf7 {[%emt 0:00:27]} 37. h4 {[%emt 0:00:55]} Qe7 {[%emt 0:00:31]} 38. Rh2 {[%emt 0:00:30]} Rh8 {[%emt 0:00:44]} 39. hxg5 {[%emt 0:00:54]} hxg5 {[%emt 0:00:03]} 40. Nd5 {[%emt 0:00:36]} Nxd5 {[%emt 0:00:58]} 41. Rxh8 {[%emt 0:30:24]} Kxh8 {[%emt 0:30:30]} 42. Qh5+ {[%emt 0:00:36]} Kg7 {[%emt 0:00:18]} 43. Qg6+ {[%emt 0:00:29]} Kf8 {[%emt 0:00:00]} 44. cxd5 {[%emt 0:00:00]} Rc8 {[%emt 0:00:00]} 45. Kg2 {[%emt 0:00:00]} Rd8 {[%emt 0:00:00]} 46. f6 {[%emt 0:00:00]} Qf7 {[%emt 0:00:00]} 47. Qxg5 {[%emt 0:00:00]} Qh7 {[%emt 0:00:00]} 48. Qg4 {[%emt 0:00:00]} Qd7 {[%emt 0:00:00]} 49. Qh5 {[%emt 0:00:00]} Qf7 {[%emt 0:00:00]} 50. Qh6+ {[%emt 0:00:00]} Ke8 {[%emt 0:00:00]} 51. Rh1 {[%emt 0:00:00]} Kd7 {[%emt 0:00:00]} 52. Qh7 {[%emt 0:00:00]} Rf8 {[%emt 0:00:00]} 53. Qf5+ {[%emt 0:00:00]} Kd8 {[%emt 0:00:00]} 54. Rh7 {[%emt 0:00:00]} Qe8 {[%emt 0:00:00]} 55. Ra7 {[%emt 0:00:00]} 1-0